fUSD/lending_fUSD_20241216
["ID","MTS","AMOUNT","RATE_DAILY","PERIOD"]
[345556079,1734346237243,-150.0,0.00019699,2]
[345556080,1734346237252,-200.0,0.000197,7]
[345556081,1734346237261,-150.0,0.00019703,2]
[345556082,1734346237270,-150.0,0.00019708,2]
[345556083,1734346237279,-150.0,0.00019708,2]
[345556084,1734346237288,-415.67271621,0.00019715,2]
[345556085,1734346237298,-150.0,0.00019717,2]
[345556086,1734346237307,-150.0,0.00019727,2]
[345556087,1734346237316,-2656.502,0.00019731,2]
[345556088,1734346237325,-180.877,0.00019731,2]
[345556089,1734346237335,-521.07,0.00019737,2]
[345556090,1734346237345,-500.0,0.0001974,2]
[345556091,1734346237354,-150.0,0.00019741,2]
[345556092,1734346237363,-150.0,0.00019741,2]
[345556093,1734346237372,-150.0,0.00019758,2]
[345556094,1734346237381,-150.0,0.00019767,2]
[345556095,1734346237391,-150.0,0.00019777,2]
[345556096,1734346237403,-150.0,0.0001978,2]
[345556097,1734346237413,-150.0,0.0001978,2]
[345556098,1734346237423,-150.0,0.00019784,2]
[345556099,1734346237432,-150.0,0.00019789,2]
[345556100,1734346237442,-150.0,0.00019794,2]
[345556101,1734346237451,-150.0,0.00019794,2]
[345556102,1734346237460,-150.0,0.00019799,2]
[345556103,1734346237471,-2003.66676267,0.000198,2]
[345556104,1734346237482,-409.5715,0.000198,2]
[345556105,1734346237491,-152.00497922,0.000198,2]
[345556106,1734346237500,-173.54918351,0.000198,2]
[345556107,1734346237509,-200.0,0.000198,7]
[345556108,1734346237519,-194.42994785,0.000198,2]
[345556109,1734346237528,-5000.0,0.000198,2]
[345556110,1734346237537,-150.0,0.00019804,2]
[345556111,1734346237546,-150.0,0.00019805,2]
[345556112,1734346237555,-10273.87004688,0.0001981,2]
[345556113,1734346237566,-152.00497914,0.00019813,2]
[345556114,1734346237575,-2013.47416,0.0001982,2]
[345556115,1734346237584,-152.00497914,0.00019825,2]
[345556116,1734346237594,-150.0,0.00019829,2]
[345556117,1734346237604,-500.0,0.0001983,2]
[345556118,1734346237614,-150.0,0.00019831,2]
[345556119,1734346237623,-150.0,0.00019831,2]
[345556120,1734346237633,-152.00497914,0.00019838,2]
[345556121,1734346237643,-150.0,0.00019843,2]
[345556122,1734346237653,-152.00497914,0.0001985,2]
[345556123,1734346237668,-150.0,0.00019862,2]
[345556124,1734346237680,-152.00497914,0.00019863,2]
[345556125,1734346237689,-159.91417289,0.00019873,2]
[345556126,1734346237699,-500.0,0.00019873,2]
[345556127,1734346237708,-250.61927491,0.00019873,2]
[345556128,1734346237717,-150.0,0.00019874,2]
[345556129,1734346237728,-152.00497914,0.00019875,2]
[345556130,1734346237737,-150.0,0.00019875,2]
[345556131,1734346237747,-150.0,0.00019878,2]
[345556132,1734346237756,-211.04774105,0.0001988,2]
[345556133,1734346237765,-173.37332511,0.0001988,2]
[345556134,1734346237775,-799.0,0.00019881,2]
[345556135,1734346237787,-150.0,0.00019881,2]
[345556136,1734346237796,-150.0,0.00019884,2]
[345556137,1734346237805,-152.00497914,0.00019888,2]
[345556138,1734346237815,-800.0,0.0001989,2]
[345556139,1734346237824,-150.0,0.00019892,2]
[345556140,1734346237833,-300.0,0.00019894,2]
[345556141,1734346237842,-1692.0,0.000199,2]
[345556142,1734346237851,-13856.17633405,0.000199,2]
[345556143,1734346238206,-2923.45636809,0.000185,2]
[345556144,1734346238216,-6032.66038836,0.000199,2]
[345556145,1734346238227,-2654.45812524,0.000199,2]
[345556146,1734346238238,-1772.25,0.000199,2]
[345556147,1734346238253,-2385.69668,0.000199,2]
[345556148,1734346238297,-697669.43905356,0.000199,2]
[345556149,1734346238306,-1800.0,0.000199,2]
[345556150,1734346238315,-176.68,0.000199,2]
[345556151,1734346238324,-500.0,0.000199,2]
[345556152,1734346238333,-500.0,0.000199,2]
[345556153,1734346238343,-500.0,0.000199,2]
[345556154,1734346238352,-500.0,0.000199,2]
[345556155,1734346238362,-500.0,0.000199,2]
[345556156,1734346238371,-200.0,0.000199,2]
[345556157,1734346238380,-211.04774104,0.000199,2]
[345556158,1734346238392,-200.0,0.000199,2]
[345556159,1734346238402,-150.0,0.000199,2]
[345556160,1734346238411,-2013.47416,0.000199,2]
[345556161,1734346238422,-152.00497914,0.000199,2]
[345556162,1734346238435,-173.54918351,0.000199,2]
[345556163,1734346238445,-799.0,0.000199,7]
[345556164,1734346238455,-173.37332511,0.000199,2]
[345556165,1734346238465,-795.30882754,0.000199,2]
[345556166,1734346238475,-271.01521216,0.000199,2]
[345556167,1734346238485,-584.30915076,0.000199,2]
[345556168,1734346238495,-15610.6971375,0.000199,2]
[345556169,1734346238504,-352.0507087,0.000199,2]
[345556170,1734346238514,-150.0,0.00019906,2]
[345556171,1734346238524,-150.0,0.00019908,2]
[345556172,1734346238535,-150.0,0.0001991,2]
[345556173,1734346238545,-150.0,0.00019912,2]
[345556174,1734346238554,-150.0,0.00019916,2]
[345556175,1734346238564,-274.36,0.00019918,2]
[345556176,1734346238574,-435.78,0.00019918,2]
[345556177,1734346238583,-435.78,0.00019918,2]
[345556178,1734346238593,-435.33,0.00019918,2]
[345556179,1734346238603,-150.0,0.00019919,2]
[345556180,1734346238613,-150.0,0.00019934,2]
[345556181,1734346238623,-150.0,0.00019937,2]
[345556182,1734346238632,-150.0,0.00019938,2]
[345556183,1734346238642,-150.0,0.00019939,2]
[345556184,1734346238652,-29376.0,0.00019945,2]
[345556185,1734346238661,-1345.68730021,0.0001995,2]
[345556186,1734346238672,-150.0,0.00019951,2]
[345556187,1734346238682,-150.0,0.00019955,2]
[345556188,1734346238691,-150.0,0.00019957,2]
[345556189,1734346238701,-1500.0,0.00019957,2]
[345556190,1734346238710,-150.0,0.00019959,2]
[345556191,1734346238720,-150.0,0.00019965,2]
[345556192,1734346238729,-150.0,0.00019967,2]
[345556193,1734346238738,-150.0,0.00019969,2]
[345556194,1734346238747,-1777.78942481,0.0001997,2]
[345556195,1734346238757,-1000.0,0.0001997,2]
[345556196,1734346238766,-2013.47416,0.0001997,2]
[345556197,1734346238775,-1000.0,0.0001997,2]
[345556198,1734346238785,-882.01413331,0.0001997,2]
[345556199,1734346238794,-17419.0,0.00019973,2]
[345556200,1734346238804,-28358.0,0.00019973,2]
[345556201,1734346238813,-381.8680061,0.00019973,2]
[345556202,1734346238823,-4722.4359808,0.00019979,2]
[345556203,1734346238832,-217.31114216,0.0001998,2]
[345556204,1734346238841,-223176.2844945,0.0001998,4]
[345556205,1734346238850,-196585.28597509,0.0001998,2]
[345556208,1734346240140,-277.11514414,0.0001972,2]
[345556209,1734346240150,-313.87749781,0.0001998,2]
[345556210,1734346240161,-644.78976771,0.0001998,2]
[345556211,1734346240217,-21.20471838,0.0001998,2]
[345556212,1734346240232,-11819.39745183,0.0001998,2]
[345556218,1734346243246,-1384.84765957,0.0001998,2]
[345556219,1734346243257,-395.9433383,0.0001998,2]
[345556220,1734346243293,-781.27465,0.0001998,2]
[345556221,1734346243304,-354.00000115,0.0001998,2]
[345556222,1734346243315,-2145.63255811,0.0001998,2]
[345556246,1734346245935,-300.0,0.00019785,2]
[345556247,1734346245944,-1491.87473008,0.0001998,2]
[345556248,1734346246124,-34330.57167113,0.0001998,2]
[345556249,1734346246135,-7066.56593343,0.0001998,2]
[345556250,1734346246146,-4607.0,0.0001998,2]
[345556251,1734346246157,-1044.7986427,0.0001998,2]
[345556252,1734346246168,-8110.73785011,0.0001998,2]
[345556253,1734346246259,-11700.03969705,0.0001998,2]
[345556260,1734346532860,157.31,0.00010137,2]
[345556261,1734347135203,-412.65,0.00016974,2]
[345556262,1734347135223,-1387.34670751,0.00017965,2]
[345556263,1734347154092,-1499.03375959,0.00017965,2]
[345556264,1734347235101,-157.31,0.00018065,2]
[345556265,1734347235123,-75.77407928,0.00018439,2]
[345556266,1734347250106,-617.57037883,0.00018439,2]
[345556267,1734347250129,-619.54061448,0.00018465,2]
[345556268,1734347329516,1000.0,0.0002,120]
[345556269,1734347357131,-1000.0,0.00018,2]
[345556272,1734347432175,-711.63,0.00018535,2]
[345556273,1734347432185,-928.78786084,0.00018539,2]
[345556274,1734347432197,-571.21213916,0.00018539,2]
[345556275,1734347432208,-202.03,0.0001859,2]
[345556276,1734347432217,-309.51,0.00018597,2]
[345556277,1734347432227,-1818.35,0.00018602,2]
[345556278,1734347432237,-1000.0,0.00018703,2]
[345556279,1734347432246,-731.0,0.00018799,2]
[345556280,1734347432256,-331.31,0.00018892,2]
[345556281,1734347432266,-200.0,0.00018971,2]
[345556282,1734347432276,-150.46,0.0001898,2]
[345556283,1734347432285,-152.99,0.0001898,2]
[345556284,1734347432295,-512.388,0.0001898,2]
[345556285,1734347432306,-218.77,0.00018992,2]
[345556286,1734347432317,-250.0,0.00019007,2]
[345556287,1734347432327,-167.36,0.00019037,2]
[345556288,1734347432337,-300.0,0.00019062,2]
[345556289,1734347432347,-1376.52,0.00019063,2]
[345556290,1734347432357,-755.95,0.00019123,2]
[345556291,1734347432367,-277.11514414,0.00019201,2]
[345556292,1734347432380,-412.65,0.00019238,2]
[345556293,1734347432393,-500.0,0.0001937,2]
[345556294,1734347432404,-500.0,0.0001937,2]
[345556295,1734347432414,-277.11514414,0.00019497,2]
[345556296,1734347432423,-331.31,0.00019591,2]
[345556297,1734347432434,-17697.85568479,0.000197,2]
[345556298,1734347432446,-20200.63044078,0.000197,2]
[345556299,1734347437213,-3642.73534348,0.000197,2]
[345556304,1734347438253,-646751.79048996,0.000197,2]
[345556305,1734347438384,-1646.1517745,0.000197,2]
[345556306,1734347438397,-10643.36908829,0.000197,2]
[345556307,1734347438409,-2388.94041669,0.000197,2]
[345556308,1734347438421,-3277.87063083,0.000197,2]
[345556309,1734347438517,-2234.41121111,0.000197,2]
[345556310,1734347438529,-1050.43601082,0.000197,2]
[345556311,1734347438542,-712.98417028,0.000197,2]
[345556312,1734347438554,-965.47893929,0.000197,2]
[345556313,1734347438570,-278.3668,0.000197,2]
[345556319,1734347440215,-827.2900949,0.000197,2]
[345556320,1734347440227,-1525.65,0.000197,2]
[345556330,1734347443199,-60708.48048181,0.000197,2]
[345556331,1734347443331,-531.18699998,0.000197,2]
[345556332,1734347443368,-375.24779947,0.000197,2]
[345556333,1734347443380,-2758.6600622,0.000197,2]
[345556334,1734347443409,-15771.99999991,0.000197,2]
[345556335,1734347443540,-13637.2035,0.000197,2]
[345556336,1734347443551,-12152.6365852,0.000197,2]
[345556343,1734347446150,-250.0,0.00019047,2]
[345556344,1734347446159,-4687.52767,0.000197,2]
[345556345,1734347446171,-7760.00000002,0.000197,2]
[345556346,1734347446182,-6215.0000005,0.000197,2]
[345556347,1734347446194,-816.3640822,0.000197,2]
[345556348,1734347446791,-1696.28013705,0.000197,2]
[345556349,1734347464908,151.56,0.00010137,2]
[345556350,1734347658269,450.0,0.00013,2]
[345556351,1734348333151,-247.0,0.0001664,2]
[345556352,1734348333174,-76.58285583,0.00016878,2]
[345556356,1734348432121,-424.25,0.00016978,2]
[345556357,1734348432143,-690.56544589,0.0001698,2]
[345556358,1734348432168,-247.0,0.0001708,2]
[345556359,1734348432188,-247.0,0.0001752,2]
[345556360,1734348432209,-247.0,0.0001796,2]
[345556361,1734348432230,-179.45064397,0.00018241,2]
[345556362,1734348432253,-604.76,0.00018289,2]
[345556363,1734348432276,-297.35472412,0.00018294,2]
[345556365,1734348507517,324.05,0.00021,120]
[345556366,1734348553101,-5053.07194476,0.00018001,2]
[345556374,1734348632359,-172.19755524,0.00018001,2]
[345556375,1734348632370,-156.39527588,0.00018294,2]
[345556376,1734348632380,-95.87940955,0.00018329,2]
[345556377,1734348632404,-104.12059045,0.00018329,2]
[345556378,1734348632413,-545.08,0.00018341,2]
[345556379,1734348632423,-672.13722251,0.00018375,2]
[345556380,1734348632441,-566.14277749,0.00018375,2]
[345556381,1734348632451,-250.0,0.00018379,2]
[345556382,1734348632461,-95.06510774,0.000184,2]
[345556383,1734348632472,-151.93489226,0.000184,2]
[345556384,1734348632481,-716.76260774,0.00018408,2]
[345556385,1734348632577,-283.23739226,0.00018408,2]
[345556386,1734348632587,-175.01,0.00018408,2]
[345556387,1734348632597,-493.41260774,0.00018418,2]
[345556388,1734348632610,-1861.76739226,0.00018418,2]
[345556389,1734348632619,-1116.54,0.00018726,2]
[345556390,1734348632629,-347.06,0.00018754,2]
[345556391,1734348632638,-500.0,0.00018822,2]
[345556392,1734348632647,-500.0,0.00018822,2]
[345556393,1734348632657,-154.75,0.00018829,2]
[345556394,1734348632668,-247.0,0.0001884,2]
[345556395,1734348632678,-719.04,0.00018865,2]
[345556396,1734348632688,-769.47,0.00018941,2]
[345556397,1734348632697,-436.37,0.00018941,2]
[345556398,1734348632707,-433.03,0.00018941,2]
[345556399,1734348632716,-769.47,0.00018941,2]
[345556400,1734348632725,-1750.3,0.00018955,2]
[345556401,1734348632734,-505.595,0.0001898,2]
[345556402,1734348632745,-250.0,0.00019017,2]
[345556403,1734348632758,-436.37,0.00019041,2]
[345556404,1734348632768,-436.37,0.00019041,2]
[345556405,1734348632777,-769.47,0.00019041,2]
[345556408,1734348632912,-769.47,0.00019041,2]
[345556409,1734348632921,-436.37,0.00019041,2]
[345556410,1734348632931,-161.69,0.00019059,2]
[345556411,1734348632942,-151.85,0.00019178,2]
[345556412,1734348632951,-424.25,0.00019242,2]
[345556413,1734348632960,-247.0,0.0001928,2]
[345556414,1734348632970,-175.01,0.00019328,2]
[345556415,1734348632980,-277.11514414,0.00019329,2]
[345556416,1734348632989,-347.06,0.00019447,2]
[345556417,1734348633000,-5000.0,0.000195,2]
[345556418,1734348633010,-2801.14196,0.000195,2]
[345556419,1734348633019,-2455.40870994,0.0001951,2]
[345556420,1734348633028,-878.24,0.00019539,2]
[345556421,1734348633038,-1538.64,0.00019539,2]
[345556422,1734348633048,-151.06,0.00019671,2]
[345556423,1734348633058,-11321.75003184,0.000197,2]
[345556424,1734348633071,-1085.423385,0.000197,2]
[345556425,1734348633090,-103778.28359519,0.000197,2]
[345556430,1734348638318,-522.11661898,0.000197,2]
[345556431,1734348638458,-4809.91612363,0.000197,2]
[345556432,1734348638606,-10635.77764428,0.000197,2]
[345556583,1734348640457,-1175.7574798,0.000197,2]
[345556618,1734348640791,-393.96264195,0.000197,2]
[345556621,1734348640803,-315.61270103,0.000197,2]
[345556868,1734348643380,-87945.87763724,0.000197,2]
[345556870,1734348643390,-1011.38013296,0.000197,2]
[345556871,1734348643399,-247.0,0.0001972,2]
[345556873,1734348643409,-500.0,0.00019741,2]
[345556874,1734348643418,-150.0,0.00019767,2]
[345556876,1734348643427,-500.0,0.00019781,2]
[345556878,1734348643436,-2725.628,0.00019797,2]
[345556879,1734348643445,-158.79948156,0.00019797,2]
[345556881,1734348643454,-33283.06272652,0.000198,2]
[345556883,1734348643463,-578.42,0.000198,2]
[345556884,1734348643471,-1780.0,0.000198,2]
[345556886,1734348643481,-500.0,0.00019819,2]
[345556888,1734348643490,-2071.9636,0.00019879,2]
[345556890,1734348643501,-500.0,0.00019879,2]
[345556891,1734348643513,-500.0,0.00019879,2]
[345556893,1734348643522,-223.4800002,0.00019879,2]
[345556894,1734348643531,-60800.5712,0.0001988,2]
[345556896,1734348643540,-36971.9828,0.0001988,2]
[345556898,1734348643548,-18921.7154,0.0001988,2]
[345556899,1734348643557,-4830.9493,0.0001988,2]
[345556901,1734348643566,-1132.809,0.0001988,2]
[345556903,1734348643576,-166.4925194,0.00019897,2]
[345556904,1734348643585,-769.47,0.000199,2]
[345556906,1734348643595,-4048.9560157,0.000199,2]
[345556907,1734348643604,-1000.0,0.0001997,2]
[345556909,1734348643613,-500.0,0.0001997,2]
[345556911,1734348643622,-150.92,0.0001997,2]
[345556913,1734348643630,-150.92,0.0001997,2]
[345556914,1734348643639,-150.92,0.0001997,2]
[345556916,1734348643647,-150.92,0.0001997,2]
[345556917,1734348643655,-150.92,0.0001997,2]
[345556919,1734348643665,-500.0,0.00019973,2]
[345556921,1734348643674,-7500.0,0.00019979,2]
[345556923,1734348643683,-3879.99943909,0.00019979,2]
[345556924,1734348643692,-725.0,0.0001998,2]
[345556926,1734348643701,-117670.97283312,0.0001998,4]
[345556928,1734348643712,-2548.42049407,0.0001998,4]
[345556930,1734348643723,-877.294,0.0001998,4]
[345556933,1734348643750,-619.91403789,0.0001998,4]
[345556935,1734348643760,-217.31114214,0.0001998,2]
[345556936,1734348643769,-2756.14877498,0.0001998,2]
[345556943,1734348643834,-31389.0,0.0001998,2]
[345557049,1734348646363,-298.954995,0.0001998,2]
[345557050,1734348646496,-431.73470497,0.0001998,2]
[345557051,1734348646508,-1169.58,0.0001998,2]
[345557052,1734348646519,-93771.00000002,0.0001998,2]
[345557053,1734348646535,-13796.37372138,0.0001998,2]
[345557054,1734348646546,-45159.46386617,0.0001998,2]
[345557055,1734348646557,-52938.849,0.0001998,2]
[345557056,1734348646786,-545.90248025,0.0001998,2]
[345557069,1734348950825,156.27,0.00010137,2]
[345557073,1734349455380,5562.0,0.000152,5]
[345557074,1734349543099,-430.99,0.00016718,2]
[345557075,1734349543121,-175.01,0.00017894,2]
[345557076,1734349543143,-1000.0,0.00017963,2]
[345557077,1734349543165,-1303.59420744,0.00018441,2]
[345557078,1734349632137,-302.22806823,0.00018,6]
[345557079,1734349633107,-97.77193177,0.00018,6]
[345557080,1734349633130,-246.08643154,0.000181,6]
[345557081,1734349637128,-553.91356846,0.000181,6]
[345557082,1734349637150,-1200.0,0.000182,6]
[345557083,1734349637172,-1700.0,0.000183,6]
[345557084,1734349637196,-2100.0,0.000184,6]
[345557085,1734349637217,-957.08379256,0.00018441,2]
[345557086,1734349637238,-400.0,0.000185,6]
[345557087,1734349637257,-155.41903536,0.00018518,2]
[345557088,1734349637279,-300.0,0.00018617,2]
[345557089,1734349637299,-4534.02531452,0.00018618,2]
[345557090,1734349647117,-400.0,0.000186,6]
[345557091,1734349647139,-822.81673677,0.00018618,2]
[345557092,1734349748167,-196.0,0.00017897,2]
[345557093,1734349774132,-4.0,0.00017897,2]
[345557094,1734349799296,250.0,0.0001782,2]
[345557095,1734349808934,2794.61,0.0001782,2]
[345557097,1734349831594,-800.90251251,0.00018618,2]
[345557098,1734349831606,-310.88825558,0.00018618,2]
[345557099,1734349831618,-2681.13771318,0.00018618,2]
[345557100,1734349831630,-2134.74678327,0.00018618,2]
[345557101,1734349831642,-4775.95831504,0.00018618,2]
[345557102,1734349831654,-3446.21271739,0.00018618,2]
[345557103,1734349831665,-11431.97571591,0.00018618,2]
[345557104,1734349831689,-341.40490107,0.00018618,2]
[345557105,1734349831701,-2002.99376128,0.00018618,2]
[345557106,1734349831714,-155.41903536,0.00018618,2]
[345557107,1734349831724,-779.41051543,0.00018618,2]
[345557108,1734349831734,-150.0,0.00018658,2]
[345557109,1734349831743,-182.92,0.00018688,2]
[345557110,1734349831757,-400.0,0.000187,6]
[345557111,1734349831766,-2071.9636,0.00018717,2]
[345557112,1734349831776,-494.23815482,0.00018717,2]
[345557113,1734349831787,-687.0,0.00018717,2]
[345557114,1734349831796,-3506.39253311,0.00018718,2]
[345557115,1734349831808,-282.9868562,0.00018718,2]
[345557116,1734349831898,-1070.02206066,0.00018718,2]
[345557117,1734349832154,-876.33,0.00018718,2]
[345557118,1734349837694,-1851.85050424,0.00018718,2]
[345557119,1734349837707,-39185.90203284,0.00018718,2]
[345557120,1734349837724,-2000.15984131,0.00018718,2]
[345557121,1734349837736,-4218.56252675,0.00018718,2]
[345557122,1734349837765,-550.68178164,0.00018718,2]
[345557123,1734349837779,-1170.99931962,0.00018718,2]
[345557124,1734349837863,-4336.67600947,0.00018718,2]
[345557125,1734349838056,-881.83821153,0.00018718,2]
[345557175,1734349839785,-868.16952263,0.00018718,2]
[345557176,1734349839794,-3047.09595735,0.00018718,2]
[345557177,1734349839859,-15874.61944265,0.00018718,2]
[345557178,1734349839869,-4830.9493,0.00018718,2]
[345557179,1734349839879,-1132.809,0.00018718,2]
[345557180,1734349839889,-494.23815474,0.00018718,2]
[345557181,1734349839899,-494.23815474,0.00018718,2]
[345557182,1734349839908,-494.23815474,0.00018719,2]
[345557183,1734349839917,-494.23815474,0.00018719,2]
[345557184,1734349839927,-494.23815474,0.0001872,2]
[345557185,1734349839938,-494.23815474,0.0001872,2]
[345557186,1734349839947,-494.23815474,0.00018721,2]
[345557187,1734349839957,-494.23815474,0.00018721,2]
[345557188,1734349839969,-1217.38573587,0.00018722,2]
[345557189,1734349839979,-494.23815474,0.00018722,2]
[345557190,1734349839989,-4048.9560157,0.00018722,2]
[345557191,1734349839999,-400.0,0.000188,6]
[345557192,1734349840008,-150.92,0.00018808,2]
[345557193,1734349840018,-150.92,0.00018808,2]
[345557194,1734349840028,-150.92,0.00018808,2]
[345557195,1734349840038,-150.92,0.00018808,2]
[345557196,1734349840047,-150.92,0.00018808,2]
[345557197,1734349840057,-150.92,0.00018808,2]
[345557198,1734349840067,-150.92,0.00018808,2]
[345557199,1734349840076,-150.92,0.00018808,2]
[345557200,1734349840086,-150.92,0.00018808,2]
[345557201,1734349840097,-150.92,0.00018808,2]
[345557202,1734349840107,-150.92,0.00018808,2]
[345557203,1734349840117,-150.92,0.00018808,2]
[345557204,1734349840127,-150.92,0.00018808,2]
[345557205,1734349840138,-150.92,0.00018808,2]
[345557206,1734349840148,-150.92,0.00018808,2]
[345557207,1734349840159,-150.92,0.00018808,2]
[345557208,1734349840168,-150.92,0.00018808,2]
[345557209,1734349840178,-150.92,0.00018808,2]
[345557210,1734349840189,-150.92,0.00018808,2]
[345557211,1734349840199,-150.92,0.00018808,2]
[345557212,1734349840209,-150.92,0.00018808,2]
[345557213,1734349840226,-150.92,0.00018808,2]
[345557214,1734349840237,-150.92,0.00018808,2]
[345557215,1734349840246,-150.92,0.00018808,2]
[345557216,1734349840256,-150.92,0.00018808,2]
[345557217,1734349840265,-150.92,0.00018808,2]
[345557218,1734349840275,-150.92,0.00018808,2]
[345557219,1734349840285,-150.92,0.00018808,2]
[345557220,1734349840296,-150.92,0.00018808,2]
[345557221,1734349840306,-150.92,0.00018808,2]
[345557222,1734349840317,-150.92,0.00018808,2]
[345557223,1734349840327,-150.92,0.00018808,2]
[345557224,1734349840339,-150.92,0.00018808,2]
[345557225,1734349840350,-150.92,0.00018808,2]
[345557226,1734349840361,-150.92,0.00018808,2]
[345557227,1734349840373,-150.92,0.00018808,2]
[345557228,1734349840384,-150.92,0.00018808,2]
[345557229,1734349840396,-150.92,0.00018808,2]
[345557230,1734349840407,-150.92,0.00018808,2]
[345557231,1734349840419,-150.92,0.00018808,2]
[345557232,1734349840430,-150.92,0.00018808,2]
[345557233,1734349840442,-150.92,0.00018808,2]
[345557234,1734349840453,-150.92,0.00018808,2]
[345557235,1734349840464,-500.0,0.00018816,2]
[345557236,1734349840483,-500.0,0.00018816,2]
[345557237,1734349840494,-223.4800002,0.00018816,2]
[345557238,1734349840511,-529.36,0.00018817,2]
[345557239,1734349840523,-7500.0,0.00018817,2]
[345557240,1734349840535,-4499.73711292,0.00018817,2]
[345557241,1734349840549,-3000.26288708,0.00018817,2]
[345557242,1734349840559,-7500.0,0.00018817,2]
[345557243,1734349840570,-7500.0,0.00018817,2]
[345557244,1734349840581,-7500.0,0.00018817,2]
[345557245,1734349840592,-7134.34882622,0.00018817,2]
[345557246,1734349840605,-365.65117378,0.00018817,2]
[345557247,1734349840616,-1147.93348238,0.00018817,2]
[345557248,1734349840662,-3246.16644934,0.00018817,2]
[345557249,1734349840674,-713.38734548,0.00018817,2]
[345557250,1734349840702,-432.21,0.00018817,2]
[345557258,1734349845029,189.18,0.00018712,30]
[345557259,1734349845170,-432.50000004,0.00018816,2]
[345557260,1734349845244,-28.21108567,0.00018816,2]
[345557261,1734349845255,-295.07715968,0.00018816,2]
[345557262,1734349845267,-204.92284032,0.00018816,2]
[345557263,1734349845277,-500.0,0.00018816,2]
[345557264,1734349845286,-199.58682493,0.00018816,2]
[345557265,1734349845296,-500.0,0.00018816,2]
[345557266,1734349845305,-500.0,0.00018816,2]
[345557267,1734349845316,-500.0,0.00018816,2]
[345557268,1734349845326,-500.0,0.00018816,2]
[345557269,1734349845336,-500.0,0.00018816,2]
[345557270,1734349845345,-500.0,0.00018816,2]
[345557272,1734349845355,-31.63673478,0.00018816,2]
[345557273,1734349845371,-262.93688867,0.00018816,2]
[345557275,1734349845408,-205.42637655,0.00018816,2]
[345557276,1734349845418,-500.0,0.00018816,2]
[345557277,1734349845429,-566.35966697,0.00018816,2]
[345557278,1734349845438,-286.28617237,0.00018816,2]
[345557279,1734349845448,-469.62688846,0.00018816,2]
[345557280,1734349845459,-500.0,0.00018816,2]
[345557281,1734349845470,-500.0,0.00018816,2]
[345557282,1734349845594,-504.04591042,0.00018816,2]
[345557283,1734349845604,-500.0,0.00018816,2]
[345557284,1734349845614,-500.0,0.00018816,2]
[345557285,1734349845623,-500.0,0.00018816,2]
[345557286,1734349845632,-442.84359645,0.00018816,2]
[345557287,1734349845642,-206.13828127,0.00018816,2]
[345557288,1734349845673,-293.86171873,0.00018816,2]
[345557289,1734349845683,-500.0,0.00018816,2]
[345557290,1734349845693,-500.0,0.00018816,2]
[345557291,1734349845704,-500.0,0.00018816,2]
[345557292,1734349845713,-500.0,0.00018816,2]
[345557293,1734349845732,-500.0,0.00018816,2]
[345557294,1734349845742,-221.93732157,0.00018816,2]
[345557295,1734349845752,-500.0,0.00018816,2]
[345557296,1734349845762,-500.0,0.00018816,2]
[345557297,1734349845772,-500.0,0.00018816,2]
[345557298,1734349845781,-500.0,0.00018816,2]
[345557299,1734349845791,-500.0,0.00018816,2]
[345557300,1734349845801,-500.0,0.00018816,2]
[345557301,1734349845811,-4396.2009597,0.00018817,4]
[345557302,1734349845828,-1041.8408,0.00018817,4]